[Event "17th Izmir Open 2018"]
[Site "Izmir"]
[Date "2018.09.11"]
[Round "4.8"]
[White "Grigoriev, Armen"]
[Black "Ozkurt, Deniz"]
[Result "1-0"]
[ECO "A00"]
[WhiteElo "2067"]
[BlackElo "1649"]
[Annotator "NA RC"]
[PlyCount "81"]
[EventDate "2018.09.09"]
[EventType "swiss"]
[EventCountry "TUR"]
[SourceTitle "playchess.com"]
[Source "ChessBase"]
[SourceQuality "1"]
[TimeControl "5400+30"]

{[%evp 8,81,-16,-44,-1,-25,-11,-28,-4,-9,3,0,-16,-16,0,-4,6,0,-14,-28,-13,-25,0,0,0,-12,19,-29,-20,-33,0,0,0,0,32767,32767,41,0,32767,32767,32767,32767,32767,32767,32767,-41,0,-154,-216,-193,-218,-202,-40,-370,0,-8,7,9,12,0,209,203,236,165,166,204,235,252,267,262,335,333,668,612,593,662]} 1. e4 {[%emt 0:00:30]} d5 {[%emt 0:05:30]} 2. Nc3 {[%emt 0:00:30]} d4 {[%emt 0:00:30]} 3. Nce2 {[%emt 0:00:00]} e5 {[%emt 0:00:30]} 4. Ng3 {[%emt 0:00:00]} Be6 {[%emt 0:00:00]} 5. Nf3 {[%emt 0:00:30]} Nd7 {[%emt 0:04:00] LiveBook: 15 Games} 6. Be2 {[%emt 0:01:30] A00: Irregular Openings} (6. c3 c5 7. Bb5 f6 8. Qe2 Ne7 9. Nh4 g6 10. O-O Bg7 11. Bc4 Qb6 12. Bxe6 Qxe6 13. f4 exf4 14. Rxf4 dxc3 15. dxc3 {1-0 (95) Dgebuadze,A (2529)-Skripchenko,A (2441) Le Port Marly 2013}) 6... f6 {[%emt 0:00:30]} 7. d3 {[%emt 0:00:30]} Bb4+ $146 {[%emt 0:00:00]} ({Predecessor:} 7... Bc5 8. O-O Ne7 9. h3 O-O 10. Nh2 b5 11. f4 exf4 12. Bxf4 Ng6 13. Bd2 Bb6 {½-½ (60) Kaulfuss,H (2046)-Rudolph,L (1899) Frankfurt 2015}) 8. Nd2 {[%emt 0:00:30]} Ne7 {[%emt 0:02:00]} 9. Bg4 {[%emt 0:00:30]} Nc5 {[%emt 0:05:30]} 10. O-O {[%emt 0:02:30]} Bxd2 {[%emt 0:00:30]} 11. Bxd2 {[%emt 0:00:30]} Qd7 {[%emt 0:00:00]} 12. h3 {[%emt 0:00:00]} Bxg4 {[%emt 0:02:00]} 13. hxg4 {[%emt 0:00:00]} Ne6 {[%emt 0:00:30]} 14. Nf5 {[%emt 0:04:30]} Ng6 {[%emt 0:01:30]} 15. g3 {[%emt 0:00:30]} O-O-O {[%emt 0:00:30]} 16. a4 {[%emt 0:00:30]} Kb8 {[%emt 0:00:30]} 17. a5 {[%emt 0:00:30]} Ne7 {[%emt 0:07:30]} 18. Kg2 {[%emt 0:01:30]} g6 {[%emt 0:07:30]} 19. Nxe7 {[%emt 0:01:30]} Qxe7 {[%emt 0:00:30]} 20. Rh1 {[%emt 0:00:30]} Qf7 {[%emt 0:02:30]} 21. Qf3 {[%emt 0:04:30]} Rdf8 {[%emt 0:07:30]} 22. Rh6 {[%emt 0:02:30]} Qd7 {[%emt 0:09:30]} 23. Rah1 {[%emt 0:00:30]} f5 {[%emt 0:01:30]} 24. gxf5 {[%emt 0:00:30]} gxf5 {[%emt 0:00:30]} 25. exf5 {[%emt 0:00:30]} Rxf5 {[%emt 0:00:30]} 26. Qe2 {[%emt 0:06:30]} ({White has to play} 26. Qxf5 $16 Nf4+ 27. Bxf4 Qxf5 28. R1h5) 26... Rhf8 {[%emt 0:06:30]} 27. Rf1 {[%emt 0:01:30] [#]} (27. Be1 $11 {remains equal.}) 27... Nf4+ $1 {[%emt 0:08:30]} 28. Bxf4 {[%emt 0:01:30]} exf4 {[%emt 0:01:30]} 29. Qe6 {[%emt 0:00:30]} Qd8 $2 {[%emt 0:01:30]} (29... Qg7 $19 30. Rh3 a6) 30. g4 $2 {[%emt 0:13:30] [#]} (30. Rxh7 $15 fxg3 31. f4) 30... f3+ $2 {[%emt 0:00:30]} ({Black should try} 30... Qg5 $1 $19 {[%cal Rg5g4]} 31. Re1 Qxg4+ 32. Kf1 a6) 31. Kh3 {[%emt 0:08:30]} R5f6 {[%emt 0:05:32]} 32. Rxf6 {[%emt 0:00:30]} Rxf6 {[%emt 0:00:28]} 33. Qe5 {[%emt 0:04:30]} Rf8 $2 {[%emt 0:02:05] [#]} (33... Rh6+ $11 {and Black has nothing to worry.} 34. Kg3 Qh4+ 35. Kxf3 Rf6+ 36. Ke2 Qxg4+ 37. f3 Qe6 38. Qxe6 Rxe6+ 39. Kf2 Kc8) 34. Re1 $1 {[%emt 0:02:30]} Rg8 {[%emt 0:01:48]} 35. Qe7 {[%emt 0:01:30]} Qc8 {[%emt 0:00:18]} 36. Qe6 {[%emt 0:00:30]} Qd8 {[%emt 0:00:07]} 37. Re5 {[%emt 0:03:30]} Qf8 {[%emt 0:03:20]} 38. a6 {[%emt 0:09:30]} b6 {[%emt 0:03:56]} 39. Rf5 {[%emt 0:02:30]} Qg7 {[%emt 0:00:29]} (39... Qc8 $142 40. Qxc8+ Kxc8) 40. Qe4 {[%emt 0:00:30]} c6 {[%emt 0:01:00]} 41. Qf4+ $18 {[%emt 0:01:30]} 1-0

[Event "17th Izmir Open 2018"]
[Site "Izmir"]
[Date "2018.09.11"]
[Round "4.9"]
[White "Demir, Utku Deniz"]
[Black "Kirilmaz, Emre"]
[Result "0-1"]
[ECO "B04"]
[WhiteElo "1678"]
[BlackElo "2017"]
[Annotator "NA RC"]
[PlyCount "84"]
[EventDate "2018.09.09"]
[EventType "swiss"]
[EventCountry "TUR"]
[SourceTitle "playchess.com"]
[Source "ChessBase"]
[SourceQuality "1"]
[TimeControl "5400+30"]

{[%evp 8,84,58,39,50,12,35,20,37,20,19,18,8,29,22,14,64,28,44,-10,32767,-2,18,-46,-49,-61,-40,-39,-44,-109,-89,-383,-472,-415,-434,-423,-313,-300,-325,-321,-335,-363,-356,-377,-352,-360,-355,-363,-493,-580,-554,-501,-495,-467,-504,-564,-592,-642,-481,-594,-661,-557,-779,-1079,-589,-1094,-690,-1367,-5022,-29989,-598,-662,-368,-695,-623,-1066,-1274,-29984,-29988]} 1. e4 {[%emt 0:14:30]} Nf6 {[%emt 0:00:30]} 2. e5 {[%emt 0:00:30]} Nd5 {[%emt 0:00:30]} 3. d4 {[%emt 0:00:30]} d6 {[%emt 0:00:00]} 4. c4 {[%emt 0:00:30]} Nb6 {[%emt 0:00:00]} 5. exd6 {[%emt 0:00:30]} cxd6 {[%emt 0:00:00]} 6. h3 {[%emt 0:00:00]} g6 {[%emt 0:00:00]} 7. Nf3 {[%emt 0:01:00]} Bg7 {[%emt 0:00:30]} 8. Be2 {[%emt 0:01:30]} O-O {[%emt 0:00:00]} 9. O-O {[%emt 0:00:30]} e5 {[%emt 0:01:00]} 10. Nc3 {[%emt 0:01:30]} Nc6 {[%emt 0:00:30]} 11. Be3 {[%emt 0:02:30] LiveBook: 3 Games} Nd7 {[%emt 0:16:30] B04: Alekhine's Defence: 4 Nf3} (11... f5 12. c5 f4 13. cxb6 fxe3 14. dxe5 exf2+ 15. Rxf2 Nxe5 16. bxa7 Qb6 17. Qd5+ Kh8 18. Rd1 Qxa7 19. Nb5 Nxf3+ 20. Bxf3 Qxa2 {½-½ (40) Nielsen,R (2262)-Poulsen,M (2259) Faroe Islands 2014}) 12. d5 $146 {[%emt 0:04:30]} ({Predecessor:} 12. Nb5 Nb6 13. dxe5 dxe5 14. Qb3 Qe7 15. Nxa7 Nd7 16. Nxc8 Rfxc8 {0-1 (58) Zaidman,G (1958)-Onocko,G (1987) La Banda 2017}) 12... Ne7 {[%emt 0:00:30]} 13. Nb5 {[%emt 0:05:30]} Nb6 {[%emt 0:04:30]} 14. c5 {[%emt 0:08:30]} dxc5 {[%emt 0:01:30]} 15. d6 {[%emt 0:01:30]} ({Better is} 15. Bxc5 $11 e4 16. Nd2) 15... Ned5 {[%emt 0:04:30]} 16. Bxc5 {[%emt 0:01:30]} e4 {[%emt 0:09:30]} 17. Nd2 {[%emt 0:07:30]} Re8 {[%emt 0:02:30]} 18. Nc4 {[%emt 0:03:30]} (18. Bxb6 $11 axb6 19. Bc4) 18... Qg5 {[%emt 0:10:30]} 19. f4 $2 {[%emt 0:11:30]} (19. h4 $17 {was worth a try.} Qxh4 20. Bxb6 Nxb6 21. Nc7 Nxc4 22. Bxc4 (22. Nxe8 $2 {perishes.} Be5 $19)) 19... Nxf4 {[%emt 0:01:30]} 20. Rxf4 {[%emt 0:00:30]} Qxc5+ {[%emt 0:01:30]} ({Less strong is} 20... Qxf4 21. Bxb6 axb6 22. d7 $15) 21. Kh1 {[%emt 0:00:30]} Qxb5 {[%emt 0:02:30]} 22. Nxb6 {[%emt 0:00:30]} Qxb6 {[%emt 0:00:30]} 23. d7 {[%emt 0:00:00]} Rd8 {[%emt 0:00:30]} 24. dxc8=Q {[%emt 0:00:00]} Raxc8 {[%emt 0:00:30]} 25. Qf1 {[%emt 0:02:30]} f5 {[%emt 0:00:30]} ({Don't play} 25... Bxb2 26. Rb1 $19) 26. Rf2 {[%emt 0:01:30]} Qe3 {[%emt 0:00:30]} ({Much less strong is} 26... Bxb2 27. Bc4+ Kh8 28. Rb1 $19) 27. g4 {[%emt 0:00:30]} Bd4 {[%emt 0:01:30]} 28. Rf4 {[%emt 0:02:30]} Be5 {[%emt 0:01:30]} 29. Rf2 {[%emt 0:01:30]} Bg3 {[%emt 0:05:30]} 30. Rg2 {[%emt 0:00:30]} f4 {[%emt 0:00:30]} 31. Bc4+ {[%emt 0:02:30]} Kh8 {[%emt 0:00:00]} 32. b3 {[%emt 0:01:30]} Rd2 {[%emt 0:04:00]} 33. Rxd2 {[%emt 0:00:00]} Qxd2 {[%emt 0:00:30]} 34. Qg1 {[%emt 0:01:00]} Rd8 {[%emt 0:00:30]} 35. a4 {[%emt 0:03:30]} b6 {[%emt 0:03:30]} 36. Rc1 {[%emt 0:02:13]} Qb2 {[%emt 0:00:30]} 37. Rb1 {[%emt 0:00:31]} Qc3 {[%emt 0:00:30]} 38. Qg2 {[%emt 0:01:42]} Bh4 {[%emt 0:04:30]} (38... Rd2 $142 39. Rg1 Rxg2 40. Rxg2 Kg7 41. h4 Bxh4 42. Bd3 Qxd3 43. Kh2 Bg3+ 44. Kh3 Qf1 45. g5 Qh1+ 46. Rh2 Qxh2+ 47. Kg4 Qh5#) 39. Qxe4 {[%emt 0:05:50]} Qxh3+ {[%emt 0:00:30]} 40. Kg1 {[%emt 0:00:02]} Qxg4+ {[%emt 0:00:30]} 41. Kh1 {[%emt 0:00:04]} Bf6 {[%emt 0:01:30]} 42. Bd5 {[%emt 0:02:44]} Qh5+ {[%emt 0:00:30]} 0-1

[Event "17th Izmir Open 2018"]
[Site "Izmir"]
[Date "2018.09.11"]
[Round "4.10"]
[White "Cilek, Bora"]
[Black "Uregen, Rafet"]
[Result "1-0"]
[ECO "B31"]
[WhiteElo "1955"]
[BlackElo "1695"]
[Annotator "NA RC"]
[PlyCount "69"]
[EventDate "2018.09.09"]
[EventType "swiss"]
[EventCountry "TUR"]
[SourceTitle "playchess.com"]
[Source "ChessBase"]
[SourceQuality "1"]
[TimeControl "5400+30"]

{[%evp 8,69,35,10,12,0,-11,0,0,-10,104,0,70,-14,32767,32767,32767,32767,32767,32767,32767,32767,32767,32767,73,32767,32767,32767,76,84,78,79,83,32,105,113,129,111,104,101,119,77,135,142,273,297,363,334,328,428,406,480,397,425,652,480,586,598,941,991,1058,1132,1656,1802]} 1. e4 {[%emt 0:00:30]} c5 {[%emt 0:00:30]} 2. Nf3 {[%emt 0:00:00]} Nc6 {[%emt 0:00:00]} 3. Bb5 {[%emt 0:00:00]} g6 {[%emt 0:00:00]} 4. O-O {[%emt 0:00:30]} Bg7 {[%emt 0:00:30]} 5. c3 {[%emt 0:00:00]} e5 {[%emt 0:01:30]} 6. Na3 {[%emt 0:14:00]} Nge7 {[%emt 0:00:30]} 7. Nc4 {[%emt 0:00:30] LiveBook: 18 Games} d6 {[%emt 0:01:30] B31: Sicilian: 2...Nc6 3 Bb5 g6} (7... d5 8. exd5 Qxd5 9. d3 O-O 10. Re1 Kh8 11. h3 f6 12. a4 Be6 13. a5 Rad8 14. Be3 g5 15. Ncd2 {½-½ (34) Romanov,E (2641)-Kovalev,V (2562) Gjakova 2016}) 8. d4 {[%emt 0:01:30]} O-O {[%emt 0:02:30]} (8... exd4 $11 9. Bf4 O-O) 9. Be3 {[%emt 0:10:30]} (9. dxe5 $16 Nxe5 10. Nxd6) 9... b6 $146 {[%emt 0:03:30]} ({Black should try} 9... exd4 $11 10. cxd4 Nxd4 11. Nxd4 a6) ({Predecessor:} 9... cxd4 10. cxd4 exd4 11. Bf4 d5 12. exd5 Qxd5 13. Nd6 Bg4 14. Be2 Rad8 15. Bc4 Bxf3 16. gxf3 {1-0 (36) Kozma,E (1962)-Kozlowski,L Balatonboglar 2014}) 10. a4 {[%emt 0:07:30]} (10. dxe5 $14 dxe5 11. Qxd8 Rxd8 12. Rfd1) 10... Qc7 {[%emt 0:04:30]} 11. d5 {[%emt 0:00:30]} Na5 {[%emt 0:00:30]} 12. Nxa5 {[%emt 0:02:30]} bxa5 {[%emt 0:00:30]} 13. Nd2 {[%emt 0:00:30]} f5 {[%emt 0:03:30]} 14. f3 {[%emt 0:01:30]} Rb8 {[%emt 0:02:30]} 15. Qc2 {[%emt 0:02:30]} Bd7 {[%emt 0:15:30]} 16. Bxd7 {[%emt 0:02:30]} Qxd7 {[%emt 0:00:30]} 17. Nb3 {[%emt 0:01:30]} fxe4 {[%emt 0:07:30]} 18. fxe4 {[%emt 0:00:30]} Rxf1+ {[%emt 0:00:30]} 19. Kxf1 {[%emt 0:01:30]} Qb7 {[%emt 0:06:30]} 20. Ra3 {[%emt 0:00:30]} c4 {[%emt 0:05:30]} (20... Kf7 $14) 21. Nd2 {[%emt 0:00:30]} Qa6 {[%emt 0:00:30]} 22. Ke1 {[%emt 0:03:30]} Nc8 {[%emt 0:02:30]} 23. b3 {[%emt 0:02:30]} Nb6 {[%emt 0:09:30]} 24. b4 {[%emt 0:02:30]} axb4 {[%emt 0:00:30]} (24... Bf6 $142) 25. cxb4 {[%emt 0:00:30]} Kh8 {[%emt 0:03:30]} (25... c3 $16 26. Rxc3 (26. Qxc3 Rc8 $16) 26... Qxa4) 26. a5 {[%emt 0:05:30]} Nd7 {[%emt 0:08:30]} 27. Qa4 {[%emt 0:07:30]} ({Less strong is} 27. Nxc4 Nf6 $16) ({Not} 27. Qxc4 Qxc4 28. Nxc4 Rxb4 $16) 27... Nf6 {[%emt 0:01:05]} 28. Qc6 {[%emt 0:01:30]} Qb7 {[%emt 0:05:00]} 29. Qxb7 {[%emt 0:01:30]} Rxb7 {[%emt 0:00:34]} 30. a6 {[%emt 0:00:00]} Rc7 {[%emt 0:00:53]} (30... Rxb4 $142 31. Bxa7 Bh6) 31. b5 {[%emt 0:00:00]} c3 {[%emt 0:00:51]} 32. Nb3 {[%emt 0:01:30]} Rc8 {[%emt 0:04:35]} 33. Bxa7 {[%emt 0:00:00]} c2 {[%emt 0:00:08]} 34. Be3 {[%emt 0:01:00]} Rc3 {[%emt 0:02:46]} 35. Bd2 $18 {[%emt 0:00:30]} 1-0